{"text_format":"3","workbook":"xlsx","n_sheets":1,"sheets":["EKİPMAN ENVANTER LİSTESİ"],"not_rendered":{"defined_names":5},"read":"whole","date_system":"1900"}

{"sheet":"EKİPMAN ENVANTER LİSTESİ","index":0,"n_rows":9,"n_cols":19,"rows_kept":9,"merged":[[0,1,0,5],[0,6,0,9],[0,10,0,12],[0,13,0,14],[2,1,2,6],[2,7,2,18]]}
[null,"EKİPMAN ENVANTER LİSTESİ"]
[]
[null,"FİZİKSEL DURUM",{"$nulls":5},"MALİ DURUM"]
[null,"Varlık veya seri numarası","Öğe açıklaması (marka ve model)","Konum","Koşul","Satıcı","Kalan hizmet yılı ","İlk değer","Peşinat","Satın alma veya kiralama tarihi","Yıl olarak kredi süresi","Kredi faiz oranı","Aylık ödeme","Aylık işletim maliyetleri","Toplam aylık maliyet","Kredi süresinin sonundaki beklenen değer","Yıllık sabit amortisman","Aylık sabit amortisman","Geçerli değer"]
[null,123,"Marka Model","Merkez şube","İyi","yerel",5,{"v":60000,"d":"60,000.00 ₺"},{"v":10000,"d":"10,000.00 ₺"},{"$f":"DATE(YEAR(TODAY())-2, 1,1)","v":"2016-01-01"},4,{"v":0.1,"d":"10.00%"},{"$f":"IFERROR(IF(AND(Veri[[#This Row],[İlk değer]]>0,Veri[[#This Row],[İlk değer]]<>Veri[[#This Row],[Peşinat]]),-1*PMT(Veri[[#This Row],[Kredi faiz oranı]]/12,Veri[[#This Row],[Yıl olarak kredi süresi]]*12,Veri[[#This Row],[İlk değer]]-Veri[[#This Row],[Peşinat]]),0),0)","v":{"v":1268.1291717373595,"d":"1,268.13 ₺"}},{"v":400,"d":"400.00 ₺"},{"$f":"IFERROR(Veri[[#This Row],[Aylık işletim maliyetleri]]+Veri[[#This Row],[Aylık ödeme]],\"\")","v":{"v":1668.1291717373595,"d":"1,668.13 ₺"}},{"v":40000,"d":"40,000.00 ₺"},{"$f":"IFERROR(IF(Veri[[#This Row],[İlk değer]]>0,SLN(Veri[[#This Row],[İlk değer]],Veri[[#This Row],[Kredi süresinin sonundaki beklenen değer]],Veri[[#This Row],[Kalan hizmet yılı ]]),0),0)","v":{"v":4000,"d":"4,000.00 ₺"}},{"$f":"IFERROR(Veri[[#This Row],[Yıllık sabit amortisman]]/12,0)","v":{"v":333.3333333333333,"d":"333.33 ₺"}},{"$f":"IFERROR(Veri[[#This Row],[İlk değer]]-(Veri[[#This Row],[Yıllık sabit amortisman]]*((TODAY()-Veri[[#This Row],[Satın alma veya kiralama tarihi]])/365)),0)","v":{"v":50027.397260273974,"d":"50,027.40 ₺"}}]
[null,456,"Marka Model","Merkez şube","Mükemmel","yerel",3,{"v":10000,"d":"10,000.00 ₺"},{"v":10000,"d":"10,000.00 ₺"},{"$f":"DATE(YEAR(TODAY())-1, 1,1)","v":"2017-01-01"},null,null,{"$f":"IFERROR(IF(AND(Veri[[#This Row],[İlk değer]]>0,Veri[[#This Row],[İlk değer]]<>Veri[[#This Row],[Peşinat]]),-1*PMT(Veri[[#This Row],[Kredi faiz oranı]]/12,Veri[[#This Row],[Yıl olarak kredi süresi]]*12,Veri[[#This Row],[İlk değer]]-Veri[[#This Row],[Peşinat]]),0),0)","v":{"v":0,"d":"0.00 ₺"}},{"v":40,"d":"40.00 ₺"},{"$f":"IFERROR(Veri[[#This Row],[Aylık işletim maliyetleri]]+Veri[[#This Row],[Aylık ödeme]],\"\")","v":{"v":40,"d":"40.00 ₺"}},null,{"$f":"IFERROR(IF(Veri[[#This Row],[İlk değer]]>0,SLN(Veri[[#This Row],[İlk değer]],Veri[[#This Row],[Kredi süresinin sonundaki beklenen değer]],Veri[[#This Row],[Kalan hizmet yılı ]]),0),0)","v":{"v":3333.3333333333335,"d":"3,333.33 ₺"}},{"$f":"IFERROR(Veri[[#This Row],[Yıllık sabit amortisman]]/12,0)","v":{"v":277.77777777777777,"d":"277.78 ₺"}},{"$f":"IFERROR(Veri[[#This Row],[İlk değer]]-(Veri[[#This Row],[Yıllık sabit amortisman]]*((TODAY()-Veri[[#This Row],[Satın alma veya kiralama tarihi]])/365)),0)","v":{"v":5031.963470319634,"d":"5,031.96 ₺"}}]
[null,789,"Marka Model","Doğu yakası","Oldukça iyi","yerel",6,{"v":100000,"d":"100,000.00 ₺"},{"v":40000,"d":"40,000.00 ₺"},{"$f":"TODAY()","v":"2018-06-29"},5,{"v":0.05,"d":"5.00%"},{"$f":"IFERROR(IF(AND(Veri[[#This Row],[İlk değer]]>0,Veri[[#This Row],[İlk değer]]<>Veri[[#This Row],[Peşinat]]),-1*PMT(Veri[[#This Row],[Kredi faiz oranı]]/12,Veri[[#This Row],[Yıl olarak kredi süresi]]*12,Veri[[#This Row],[İlk değer]]-Veri[[#This Row],[Peşinat]]),0),0)","v":{"v":1132.274018640656,"d":"1,132.27 ₺"}},{"v":80,"d":"80.00 ₺"},{"$f":"IFERROR(Veri[[#This Row],[Aylık işletim maliyetleri]]+Veri[[#This Row],[Aylık ödeme]],\"\")","v":{"v":1212.274018640656,"d":"1,212.27 ₺"}},{"v":3000,"d":"3,000.00 ₺"},{"$f":"IFERROR(IF(Veri[[#This Row],[İlk değer]]>0,SLN(Veri[[#This Row],[İlk değer]],Veri[[#This Row],[Kredi süresinin sonundaki beklenen değer]],Veri[[#This Row],[Kalan hizmet yılı ]]),0),0)","v":{"v":16166.666666666666,"d":"16,166.67 ₺"}},{"$f":"IFERROR(Veri[[#This Row],[Yıllık sabit amortisman]]/12,0)","v":{"v":1347.2222222222222,"d":"1,347.22 ₺"}},{"$f":"IFERROR(Veri[[#This Row],[İlk değer]]-(Veri[[#This Row],[Yıllık sabit amortisman]]*((TODAY()-Veri[[#This Row],[Satın alma veya kiralama tarihi]])/365)),0)","v":{"v":100000,"d":"100,000.00 ₺"}}]
[{"$nulls":12},{"$f":"IFERROR(IF(AND(Veri[[#This Row],[İlk değer]]>0,Veri[[#This Row],[İlk değer]]<>Veri[[#This Row],[Peşinat]]),-1*PMT(Veri[[#This Row],[Kredi faiz oranı]]/12,Veri[[#This Row],[Yıl olarak kredi süresi]]*12,Veri[[#This Row],[İlk değer]]-Veri[[#This Row],[Peşinat]]),0),0)","v":{"v":0,"d":"0.00 ₺"}},null,{"$f":"IFERROR(Veri[[#This Row],[Aylık işletim maliyetleri]]+Veri[[#This Row],[Aylık ödeme]],\"\")","v":{"v":0,"d":"0.00 ₺"}},null,{"$f":"IFERROR(IF(Veri[[#This Row],[İlk değer]]>0,SLN(Veri[[#This Row],[İlk değer]],Veri[[#This Row],[Kredi süresinin sonundaki beklenen değer]],Veri[[#This Row],[Kalan hizmet yılı ]]),0),0)","v":{"v":0,"d":"0.00 ₺"}},{"$f":"IFERROR(Veri[[#This Row],[Yıllık sabit amortisman]]/12,0)","v":{"v":0,"d":"0.00 ₺"}},{"$f":"IFERROR(Veri[[#This Row],[İlk değer]]-(Veri[[#This Row],[Yıllık sabit amortisman]]*((TODAY()-Veri[[#This Row],[Satın alma veya kiralama tarihi]])/365)),0)","v":{"v":0,"d":"0.00 ₺"}}]
[{"$nulls":12},{"$f":"IFERROR(IF(AND(Veri[[#This Row],[İlk değer]]>0,Veri[[#This Row],[İlk değer]]<>Veri[[#This Row],[Peşinat]]),-1*PMT(Veri[[#This Row],[Kredi faiz oranı]]/12,Veri[[#This Row],[Yıl olarak kredi süresi]]*12,Veri[[#This Row],[İlk değer]]-Veri[[#This Row],[Peşinat]]),0),0)","v":{"v":0,"d":"0.00 ₺"}},null,{"$f":"IFERROR(Veri[[#This Row],[Aylık işletim maliyetleri]]+Veri[[#This Row],[Aylık ödeme]],\"\")","v":{"v":0,"d":"0.00 ₺"}},null,{"$f":"IFERROR(IF(Veri[[#This Row],[İlk değer]]>0,SLN(Veri[[#This Row],[İlk değer]],Veri[[#This Row],[Kredi süresinin sonundaki beklenen değer]],Veri[[#This Row],[Kalan hizmet yılı ]]),0),0)","v":{"v":0,"d":"0.00 ₺"}},{"$f":"IFERROR(Veri[[#This Row],[Yıllık sabit amortisman]]/12,0)","v":{"v":0,"d":"0.00 ₺"}},{"$f":"IFERROR(Veri[[#This Row],[İlk değer]]-(Veri[[#This Row],[Yıllık sabit amortisman]]*((TODAY()-Veri[[#This Row],[Satın alma veya kiralama tarihi]])/365)),0)","v":{"v":0,"d":"0.00 ₺"}}]